[Event "GrandPrix_29.05"]
[Site "Chess.com"]
[Date "2020.05.29"]
[Round "1"]
[White "ALeks_Ivlev"]
[Black "ninullia"]
[Result "0-1"]
[WhiteElo "1643"]
[BlackElo "2335"]
[TimeControl "600+2"]
[EndTime "9:25:06 PDT"]
[Termination "ninullia won by resignation"]

1. d4 {[%clk 0:09:55.6]} 1... Nf6 {[%clk 0:09:58.5]} 2. c4 {[%clk 0:09:50.5]}
2... e6 {[%clk 0:09:37.3]} 3. Nf3 {[%clk 0:09:49.5]} 3... d5 {[%clk 0:09:21.9]}
4. g3 {[%clk 0:09:45.9]} 4... Bb4+ {[%clk 0:09:14.4]} 5. Nbd2 {[%clk 0:09:44.1]}
5... Bd6 {[%clk 0:09:15.8]} 6. Bg2 {[%clk 0:09:40.2]} 6... O-O {[%clk 0:09:11]}
7. O-O {[%clk 0:09:39]} 7... c6 {[%clk 0:09:10.5]} 8. Qc2 {[%clk 0:09:37.9]}
8... Nbd7 {[%clk 0:09:04.6]} 9. e4 {[%clk 0:09:26.4]} 9... dxe4 {[%clk
0:09:03.5]} 10. Nxe4 {[%clk 0:09:25.3]} 10... Nxe4 {[%clk 0:08:55.3]} 11. Qxe4
{[%clk 0:09:24.5]} 11... Nf6 {[%clk 0:08:36]} 12. Qe2 {[%clk 0:09:22.9]} 12...
h6 {[%clk 0:08:36.9]} 13. Rd1 {[%clk 0:09:21.9]} 13... Re8 {[%clk 0:08:32.5]}
14. Ne5 {[%clk 0:08:23.7]} 14... Qe7 {[%clk 0:08:22.5]} 15. Bf4 {[%clk
0:08:17.7]} 15... Bd7 {[%clk 0:08:16.8]} 16. c5 {[%clk 0:08:06.1]} 16... Bb8
{[%clk 0:07:48.1]} 17. b4 {[%clk 0:07:29.3]} 17... Nd5 {[%clk 0:07:39.6]} 18.
Bd2 {[%clk 0:07:28.7]} 18... Bxe5 {[%clk 0:07:25.9]} 19. Qxe5 {[%clk 0:07:22.8]}
19... Qf6 {[%clk 0:07:21.6]} 20. a4 {[%clk 0:06:42.1]} 20... Red8 {[%clk
0:07:11]} 21. Rab1 {[%clk 0:06:36.3]} 21... a6 {[%clk 0:06:57.4]} 22. h4 {[%clk
0:06:05.6]} 22... Be8 {[%clk 0:06:53.8]} 23. Be1 {[%clk 0:05:47.5]} 23... Qxe5
{[%clk 0:06:27.5]} 24. dxe5 {[%clk 0:05:47.2]} 24... f6 {[%clk 0:06:29.1]} 25.
exf6 {[%clk 0:05:45.9]} 25... gxf6 {[%clk 0:06:28.2]} 26. Bd2 {[%clk 0:05:36.4]}
26... Kg7 {[%clk 0:06:22.1]} 27. Re1 {[%clk 0:05:00.6]} 27... Bg6 {[%clk
0:06:13]} 28. Rbc1 {[%clk 0:04:50.1]} 28... e5 {[%clk 0:06:09.5]} 29. f4 {[%clk
0:04:45.2]} 29... exf4 {[%clk 0:05:48.5]} 30. Bxd5 {[%clk 0:04:15.5]} 30... Rxd5
{[%clk 0:05:45]} 31. Bxf4 {[%clk 0:04:16.9]} 31... Re8 {[%clk 0:04:40.6]} 32.
Rxe8 {[%clk 0:04:15.7]} 32... Bxe8 {[%clk 0:04:40.9]} 33. Re1 {[%clk 0:04:16.5]}
33... Bd7 {[%clk 0:04:42.5]} 34. Re7+ {[%clk 0:03:52.5]} 34... Kg6 {[%clk
0:04:40.9]} 35. Bd6 {[%clk 0:03:51.9]} 35... Bc8 {[%clk 0:03:51.2]} 36. Rc7
{[%clk 0:03:38.5]} 36... Bf5 {[%clk 0:03:48.3]} 37. Rxb7 {[%clk 0:03:38.4]}
37... Be4 {[%clk 0:03:49.1]} 38. Kf2 {[%clk 0:03:36]} 38... Kf5 {[%clk
0:03:47.3]} 39. Rb6 {[%clk 0:02:58.1]} 39... Rd2+ {[%clk 0:03:27.8]} 40. Ke3
{[%clk 0:02:57.5]} 40... Rd3+ {[%clk 0:03:28.5]} 41. Ke2 {[%clk 0:02:58.9]}
41... Ra3 {[%clk 0:03:24.8]} 42. a5 {[%clk 0:02:20.5]} 42... Bd3+ {[%clk
0:03:17.5]} 43. Kd2 {[%clk 0:02:21.3]} 43... Bb5 {[%clk 0:03:17.4]} 44. Rb7
{[%clk 0:02:22.1]} 44... Ke4 {[%clk 0:03:13.4]} 45. Bf4 {[%clk 0:02:05.2]} 45...
Kd4 {[%clk 0:02:39.9]} 46. Rd7+ {[%clk 0:02:02.3]} 46... Kc4 {[%clk 0:02:40.9]}
47. Rd6 {[%clk 0:01:30.6]} 47... Kxb4 {[%clk 0:02:09.7]} 48. Rxf6 {[%clk
0:01:30.9]} 48... Rd3+ {[%clk 0:02:10.5]} 49. Ke1 {[%clk 0:01:28.7]} 49... h5
{[%clk 0:02:08.9]} 50. Rf5 {[%clk 0:00:55.7]} 50... Rd5 {[%clk 0:02:01.3]} 51.
Rxd5 {[%clk 0:00:55.4]} 51... cxd5 {[%clk 0:02:02.3]} 52. Bd6 {[%clk 0:00:40.7]}
52... Kxa5 {[%clk 0:01:57.6]} 53. Kd2 {[%clk 0:00:31.1]} 53... d4 {[%clk
0:01:48.7]} 54. g4 {[%clk 0:00:29.4]} 54... hxg4 {[%clk 0:01:09.6]} 55. h5
{[%clk 0:00:12]} 55... Be8 {[%clk 0:01:09.7]} 56. h6 {[%clk 0:00:10]} 56... Bg6
{[%clk 0:01:09.1]} 57. Be5 {[%clk 0:00:08.8]} 57... d3 {[%clk 0:01:05.8]} 58.
Kc3 {[%clk 0:00:07.9]} 58... Kb5 {[%clk 0:01:06.3]} 59. Bd6 {[%clk 0:00:04.8]}
59... Kc6 {[%clk 0:01:06.6]} 60. Kd2 {[%clk 0:00:05.4]} 60... a5 {[%clk
0:01:07.4]} 61. Kc3 {[%clk 0:00:06.5]} 61... Kd5 {[%clk 0:01:03.7]} 62. Kd2
{[%clk 0:00:04.8]} 62... a4 {[%clk 0:01:04.5]} 63. Kc3 {[%clk 0:00:05.9]} 63...
Kc6 {[%clk 0:01:03]} 64. Kd2 {[%clk 0:00:06.7]} 64... a3 {[%clk 0:01:01]} 65.
Be5 {[%clk 0:00:07.4]} 65... a2 {[%clk 0:00:59.9]} 66. Ba1 {[%clk 0:00:08.1]}
66... g3 {[%clk 0:00:52.7]} 67. Ke3 {[%clk 0:00:08.6]} 67... g2 {[%clk 0:00:51]}
0-1

[Event "GrandPrix_29.05"]
[Site "Chess.com"]
[Date "2020.05.29"]
[Round "1"]
[White "jacky72"]
[Black "Malysch"]
[Result "0-1"]
[WhiteElo "1196"]
[BlackElo "2224"]
[TimeControl "600+2"]
[EndTime "9:25:07 PDT"]
[Termination "Malysch won by checkmate"]

1. d4 {[%clk 0:09:58.6]} 1... Nf6 {[%clk 0:09:56.9]} 2. c4 {[%clk 0:09:56.7]}
2... c5 {[%clk 0:09:56.4]} 3. d5 {[%clk 0:09:57]} 3... b5 {[%clk 0:09:53]} 4.
Qc2 {[%clk 0:09:54.9]} 4... bxc4 {[%clk 0:09:41.1]} 5. e4 {[%clk 0:09:26.5]}
5... g6 {[%clk 0:09:29.5]} 6. Bxc4 {[%clk 0:09:22.6]} 6... d6 {[%clk 0:09:27]}
7. Nc3 {[%clk 0:09:22.1]} 7... Bg7 {[%clk 0:09:25.7]} 8. Nf3 {[%clk 0:09:21.4]}
8... O-O {[%clk 0:09:24.2]} 9. O-O {[%clk 0:09:22.6]} 9... Ba6 {[%clk
0:09:24.9]} 10. Nd2 {[%clk 0:09:10.4]} 10... Qa5 {[%clk 0:08:48]} 11. Re1 {[%clk
0:08:46.4]} 11... Nfd7 {[%clk 0:05:47.6]} 12. Nb3 {[%clk 0:08:25.3]} 12... Qb4
{[%clk 0:05:38.2]} 13. Be2 {[%clk 0:08:13.4]} 13... c4 {[%clk 0:05:19.9]} 14.
Nd2 {[%clk 0:07:46.2]} 14... Ne5 {[%clk 0:05:18.9]} 15. Rb1 {[%clk 0:07:08.4]}
15... Nbd7 {[%clk 0:04:59.6]} 16. Qa4 {[%clk 0:06:31.6]} 16... Qxa4 {[%clk
0:04:38.5]} 17. Nxa4 {[%clk 0:06:33.5]} 17... Rfc8 {[%clk 0:04:30.1]} 18. Nf3
{[%clk 0:06:11.2]} 18... Rab8 {[%clk 0:04:12.2]} 19. Nxe5 {[%clk 0:06:10.3]}
19... Nxe5 {[%clk 0:04:11.3]} 20. Be3 {[%clk 0:06:05.7]} 20... Nd3 {[%clk
0:03:52.2]} 21. Red1 {[%clk 0:05:28.6]} 21... Rb4 {[%clk 0:03:27.2]} 22. b3
{[%clk 0:05:11.6]} 22... Ne5 {[%clk 0:02:26]} 23. Bxa7 {[%clk 0:04:47.6]} 23...
Ra8 {[%clk 0:02:01]} 24. a3 {[%clk 0:03:07]} 24... Rxb3 {[%clk 0:01:00.7]} 25.
Be3 {[%clk 0:02:45.1]} 25... Rxa3 {[%clk 0:00:44]} 26. Nb6 {[%clk 0:02:44.7]}
26... Rd8 {[%clk 0:00:27.6]} 27. Rdc1 {[%clk 0:02:34]} 27... Nd3 {[%clk
0:00:27.7]} 28. Bxd3 {[%clk 0:02:16.3]} 28... cxd3 {[%clk 0:00:29.6]} 29. Nc4
{[%clk 0:02:18.2]} 29... Ra4 {[%clk 0:00:24]} 30. Nd2 {[%clk 0:02:14.8]} 30...
Bf6 {[%clk 0:00:18]} 31. f3 {[%clk 0:02:09.5]} 31... Ra8 {[%clk 0:00:18]} 32.
Kf2 {[%clk 0:02:09.9]} 32... Ra2 {[%clk 0:00:18.6]} 33. f4 {[%clk 0:02:03.3]}
33... Rc2 {[%clk 0:00:19]} 34. g4 {[%clk 0:01:57.9]} 34... Rac8 {[%clk
0:00:15.2]} 35. Rd1 {[%clk 0:01:58.4]} 35... Bc3 {[%clk 0:00:14.6]} 36. Kf3
{[%clk 0:01:56.9]} 36... Ra2 {[%clk 0:00:14.1]} 37. h4 {[%clk 0:01:52.6]} 37...
Rc2 {[%clk 0:00:14.8]} 38. h5 {[%clk 0:01:53]} 38... Kg7 {[%clk 0:00:15.1]} 39.
Rb6 {[%clk 0:01:45.2]} 39... Bc4 {[%clk 0:00:14]} 40. Nxc4 {[%clk 0:01:25.1]}
40... Rxc4 {[%clk 0:00:15.9]} 41. Rxd3 {[%clk 0:01:26.8]} 41... gxh5 {[%clk
0:00:16.6]} 42. gxh5 {[%clk 0:01:27.2]} 42... Rh2 {[%clk 0:00:18]} 43. Kg4
{[%clk 0:01:17.9]} 43... Bf6 {[%clk 0:00:15.3]} 44. Rd1 {[%clk 0:01:00.8]} 44...
Rxe4 {[%clk 0:00:15.2]} 45. Kf3 {[%clk 0:01:02.1]} 45... Ra4 {[%clk 0:00:13.3]}
46. Rg1+ {[%clk 0:01:02.9]} 46... Kh6 {[%clk 0:00:13.9]} 47. Rb3 {[%clk
0:00:53.1]} 47... Rh3+ {[%clk 0:00:14.2]} 48. Kg4 {[%clk 0:00:54.5]} 48... Rh4+
{[%clk 0:00:14.6]} 49. Kg3 {[%clk 0:00:54.4]} 49... Rxh5 {[%clk 0:00:15.7]} 50.
Rb8 {[%clk 0:00:48.4]} 50... Rxd5 {[%clk 0:00:14.6]} 51. f5+ {[%clk 0:00:45.2]}
51... Kh5 {[%clk 0:00:13.4]} 52. Rg8 {[%clk 0:00:28.4]} 52... Rxf5 {[%clk
0:00:11.3]} 53. Rc1 {[%clk 0:00:23.2]} 53... Bh4+ {[%clk 0:00:11.4]} 54. Kg2
{[%clk 0:00:23.4]} 54... Ra2+ {[%clk 0:00:12.3]} 55. Kh1 {[%clk 0:00:23.4]}
55... Bg5 {[%clk 0:00:12.1]} 56. Bxg5 {[%clk 0:00:08.6]} 56... Rxg5 {[%clk
0:00:14]} 57. Rh8 {[%clk 0:00:09.4]} 57... Kg6 {[%clk 0:00:14.3]} 58. Rg8+
{[%clk 0:00:08.7]} 58... Kh6 {[%clk 0:00:13.5]} 59. Rf8 {[%clk 0:00:09.9]} 59...
Rf5 {[%clk 0:00:13.8]} 60. Rg1 {[%clk 0:00:09.1]} 60... Rh5# {[%clk 0:00:14]}
0-1

[Event "GrandPrix_29.05"]
[Site "Chess.com"]
[Date "2020.05.29"]
[Round "1"]
[White "Khvicha_Supatashvili"]
[Black "francyIM"]
[Result "0-1"]
[WhiteElo "1768"]
[BlackElo "2383"]
[TimeControl "600+2"]
[EndTime "9:25:08 PDT"]
[Termination "francyIM won by resignation"]

1. d4 {[%clk 0:09:51]} 1... Nf6 {[%clk 0:09:59.4]} 2. c4 {[%clk 0:09:50.8]} 2...
e6 {[%clk 0:09:56.3]} 3. Nf3 {[%clk 0:09:51.2]} 3... b6 {[%clk 0:09:53.5]} 4. g3
{[%clk 0:09:50.5]} 4... Ba6 {[%clk 0:09:53.4]} 5. b3 {[%clk 0:09:50.9]} 5...
Bb4+ {[%clk 0:09:53.5]} 6. Bd2 {[%clk 0:09:51.4]} 6... Be7 {[%clk 0:09:54]} 7.
Bg2 {[%clk 0:09:50.5]} 7... c6 {[%clk 0:09:54.4]} 8. Bc3 {[%clk 0:09:49.7]} 8...
d5 {[%clk 0:09:55]} 9. Nbd2 {[%clk 0:09:49]} 9... Nbd7 {[%clk 0:09:53.4]} 10.
O-O {[%clk 0:09:48.2]} 10... O-O {[%clk 0:09:52.3]} 11. Re1 {[%clk 0:09:45.9]}
11... c5 {[%clk 0:09:48.2]} 12. e4 {[%clk 0:09:42]} 12... dxc4 {[%clk
0:09:47.6]} 13. bxc4 {[%clk 0:09:16.4]} 13... cxd4 {[%clk 0:09:47.2]} 14. Nxd4
{[%clk 0:09:16.6]} 14... Ne5 {[%clk 0:09:38.2]} 15. Nxe6 {[%clk 0:08:56.5]}
15... fxe6 {[%clk 0:09:37.4]} 16. Bxe5 {[%clk 0:08:57.4]} 16... Bc5 {[%clk
0:09:38.4]} 17. Bf4 {[%clk 0:08:36.1]} 17... e5 {[%clk 0:07:56.2]} 18. Be3
{[%clk 0:08:34.1]} 18... Qc7 {[%clk 0:07:10.5]} 19. Bh3 {[%clk 0:08:18.4]} 19...
Rad8 {[%clk 0:07:07.1]} 20. Be6+ {[%clk 0:08:10.4]} 20... Kh8 {[%clk 0:07:03.9]}
21. Bd5 {[%clk 0:08:09.8]} 21... Bc8 {[%clk 0:05:56.9]} 22. Bxc5 {[%clk
0:07:25.6]} 22... Qxc5 {[%clk 0:05:55.2]} 23. Nb3 {[%clk 0:07:22]} 23... Qe7
{[%clk 0:05:49.5]} 24. f3 {[%clk 0:07:17.5]} 24... Nh5 {[%clk 0:05:17.1]} 25.
Qe2 {[%clk 0:06:57.9]} 25... Qg5 {[%clk 0:05:13.8]} 26. Qe3 {[%clk 0:04:45.5]}
26... Qg6 {[%clk 0:05:09.7]} 27. Re2 {[%clk 0:04:44.8]} 27... Nf4 {[%clk
0:04:27.8]} 28. Rd2 {[%clk 0:04:44.1]} 28... Nh3+ {[%clk 0:04:25]} 29. Kh1
{[%clk 0:04:40.9]} 29... Rd6 {[%clk 0:03:28.2]} 30. Rf1 {[%clk 0:04:31.6]} 30...
Rdf6 {[%clk 0:03:27.5]} 31. Rg2 {[%clk 0:04:02.8]} 31... Qg5 {[%clk 0:02:21.9]}
32. Qxg5 {[%clk 0:04:01.5]} 32... Nxg5 {[%clk 0:02:22.4]} 33. f4 {[%clk
0:03:44.5]} 33... Bh3 {[%clk 0:02:22.5]} 34. f5 {[%clk 0:03:44.1]} 34... g6
{[%clk 0:02:12.7]} 35. g4 {[%clk 0:03:44.2]} 35... h5 {[%clk 0:02:10.6]} 36.
Rff2 {[%clk 0:02:32.9]} 36... hxg4 {[%clk 0:01:32.6]} 37. Rg1 {[%clk 0:02:03.4]}
37... gxf5 {[%clk 0:01:31.9]} 38. exf5 {[%clk 0:02:02.8]} 38... Rxf5 {[%clk
0:01:33.2]} 39. Re2 {[%clk 0:01:33.3]} 39... Nf3 {[%clk 0:01:00.8]} 40. Rc1
{[%clk 0:01:05.8]} 40... Nh4 {[%clk 0:00:32.6]} 41. Nd2 {[%clk 0:00:55.3]} 41...
Rf2 {[%clk 0:00:31.1]} 42. Rce1 {[%clk 0:00:53.3]} 42... Rxe2 {[%clk 0:00:31.2]}
43. Rxe2 {[%clk 0:00:52.6]} 43... Rf5 {[%clk 0:00:30.7]} 44. Be6 {[%clk
0:00:41.5]} 44... Rg5 {[%clk 0:00:21.6]} 45. Ne4 {[%clk 0:00:32.4]} 45... Rg6
{[%clk 0:00:22.6]} 46. Bd5 {[%clk 0:00:31.2]} 46... Nf3 {[%clk 0:00:23.2]} 47.
Ng3 {[%clk 0:00:27.3]} 47... Rd6 {[%clk 0:00:23.4]} 48. a4 {[%clk 0:00:23.6]}
48... Rd8 {[%clk 0:00:21.6]} 49. Ne4 {[%clk 0:00:19.2]} 49... Rf8 {[%clk
0:00:20.5]} 50. Rf2 {[%clk 0:00:19.8]} 50... Rf4 {[%clk 0:00:21]} 51. Re2 {[%clk
0:00:07.3]} 51... Nd4 {[%clk 0:00:21.7]} 52. Re1 {[%clk 0:00:08.1]} 52... Nc2
{[%clk 0:00:22.8]} 53. Rc1 {[%clk 0:00:08.6]} 53... Ne3 {[%clk 0:00:23.9]} 54.
Ng3 {[%clk 0:00:09.6]} 54... Rd4 {[%clk 0:00:20.6]} 55. Be6 {[%clk 0:00:07.8]}
55... Rd2 {[%clk 0:00:20.4]} 56. Bf7 {[%clk 0:00:06]} 56... Kg7 {[%clk
0:00:20.7]} 57. Be6 {[%clk 0:00:06.6]} 57... Kf6 {[%clk 0:00:21.9]} 58. Bg8
{[%clk 0:00:07.6]} 58... Kg7 {[%clk 0:00:22]} 59. Be6 {[%clk 0:00:07.5]} 59...
Bg2+ {[%clk 0:00:20.9]} 60. Kg1 {[%clk 0:00:07.8]} 60... Bf3 {[%clk 0:00:22.1]}
61. Nf5+ {[%clk 0:00:04.1]} 61... Nxf5 {[%clk 0:00:23.2]} 0-1

[Event "GrandPrix_29.05"]
[Site "Chess.com"]
[Date "2020.05.29"]
[Round "1"]
[White "Valeriy_Neverov"]
[Black "DrVelja"]
[Result "1-0"]
[WhiteElo "1856"]
[BlackElo "2179"]
[TimeControl "600+2"]
[EndTime "9:25:08 PDT"]
[Termination "Valeriy_Neverov won by resignation"]

1. d4 {[%clk 0:09:51.9]} 1... Nf6 {[%clk 0:10:00.3]} 2. c4 {[%clk 0:09:50.5]}
2... g6 {[%clk 0:10:01.4]} 3. Nc3 {[%clk 0:09:50.1]} 3... Bg7 {[%clk 0:09:57.7]}
4. e4 {[%clk 0:09:46.5]} 4... d6 {[%clk 0:09:59]} 5. f3 {[%clk 0:09:45.2]} 5...
O-O {[%clk 0:09:59.4]} 6. Be3 {[%clk 0:09:45]} 6... c5 {[%clk 0:09:59.7]} 7.
Nge2 {[%clk 0:09:45.7]} 7... Qa5 {[%clk 0:09:52.8]} 8. Qd2 {[%clk 0:09:36.3]}
8... Nc6 {[%clk 0:09:53]} 9. d5 {[%clk 0:09:28]} 9... Ne5 {[%clk 0:09:53.5]} 10.
b3 {[%clk 0:07:58.8]} 10... e6 {[%clk 0:09:17.8]} 11. Rc1 {[%clk 0:06:44.4]}
11... exd5 {[%clk 0:08:51.5]} 12. cxd5 {[%clk 0:06:43.3]} 12... b5 {[%clk
0:07:27.5]} 13. Nf4 {[%clk 0:06:21.2]} 13... b4 {[%clk 0:07:10.8]} 14. Nd1
{[%clk 0:06:17.8]} 14... Ba6 {[%clk 0:06:29.3]} 15. Bxa6 {[%clk 0:05:44]} 15...
Qxa6 {[%clk 0:06:31.2]} 16. Nf2 {[%clk 0:05:29.9]} 16... c4 {[%clk 0:05:31.9]}
17. bxc4 {[%clk 0:04:53.3]} 17... Nxc4 {[%clk 0:05:18.8]} 18. Qe2 {[%clk
0:04:44.4]} 18... Rfc8 {[%clk 0:05:18.7]} 19. O-O {[%clk 0:04:43.2]} 19... Nd7
{[%clk 0:05:15.9]} 20. Rc2 {[%clk 0:04:33.7]} 20... Nde5 {[%clk 0:04:02.6]} 21.
Rfc1 {[%clk 0:04:26]} 21... Qa3 {[%clk 0:03:57.8]} 22. N4d3 {[%clk 0:03:24.1]}
22... Nxd3 {[%clk 0:02:59.3]} 23. Qxd3 {[%clk 0:03:06.3]} 23... Bc3 {[%clk
0:02:30.2]} 24. Bd4 {[%clk 0:02:33.5]} 24... Bxd4 {[%clk 0:02:12.6]} 25. Qxd4
{[%clk 0:02:32.2]} 25... Nb6 {[%clk 0:02:14]} 26. Rxc8+ {[%clk 0:02:25.4]} 26...
Rxc8 {[%clk 0:02:15.9]} 27. Rxc8+ {[%clk 0:02:25.4]} 27... Nxc8 {[%clk
0:02:17.8]} 28. Ng4 {[%clk 0:02:21.9]} 28... Qc3 {[%clk 0:01:04.7]} 29. Qxc3
{[%clk 0:02:10.5]} 29... bxc3 {[%clk 0:01:06.6]} 30. Ne3 {[%clk 0:02:11]} 30...
f5 {[%clk 0:00:32.5]} 31. Kf2 {[%clk 0:02:10.2]} 31... Kf7 {[%clk 0:00:12.3]}
32. Ke2 {[%clk 0:02:10.4]} 32... fxe4 {[%clk 0:00:09.8]} 33. fxe4 {[%clk
0:02:10.7]} 33... Nb6 {[%clk 0:00:05.8]} 34. Kd3 {[%clk 0:02:05.3]} 34... Na4
{[%clk 0:00:07.4]} 35. Kc4 {[%clk 0:01:33]} 35... Kf6 {[%clk 0:00:07.3]} 36. Kb3
{[%clk 0:01:01.9]} 36... Nc5+ {[%clk 0:00:07.5]} 37. Kxc3 {[%clk 0:01:01.7]}
37... Nxe4+ {[%clk 0:00:09.4]} 38. Kd4 {[%clk 0:00:58]} 38... Nc5 {[%clk
0:00:08.8]} 39. Nc4 {[%clk 0:00:58.8]} 39... Ke7 {[%clk 0:00:10.3]} 40. g4
{[%clk 0:00:24.3]} 40... h6 {[%clk 0:00:07.7]} 41. h4 {[%clk 0:00:22.7]} 41...
g5 {[%clk 0:00:09.3]} 42. h5 {[%clk 0:00:21]} 42... Nd7 {[%clk 0:00:10.6]} 43.
Ne3 {[%clk 0:00:16.2]} 43... Ne5 {[%clk 0:00:03.9]} 44. Nf5+ {[%clk 0:00:16.7]}
44... Kf6 {[%clk 0:00:03.4]} 45. Nxh6 {[%clk 0:00:17.5]} 45... a6 {[%clk
0:00:02.9]} 46. a4 {[%clk 0:00:10.6]} 46... a5 {[%clk 0:00:04]} 47. Ke4 {[%clk
0:00:09.5]} 47... Nc4 {[%clk 0:00:04.5]} 48. Nf5 {[%clk 0:00:08.2]} 48... Nb6
{[%clk 0:00:05.3]} 49. Nxd6 {[%clk 0:00:08.1]} 49... Nxa4 {[%clk 0:00:07.2]} 50.
Nc4 {[%clk 0:00:07.1]} 50... Nc3+ {[%clk 0:00:08.4]} 51. Kd4 {[%clk 0:00:07.6]}
51... Ne2+ {[%clk 0:00:09.8]} 52. Kc5 {[%clk 0:00:08.5]} 52... a4 {[%clk
0:00:07.5]} 53. d6 {[%clk 0:00:08.3]} 53... Nf4 {[%clk 0:00:03.4]} 54. Kc6
{[%clk 0:00:07.2]} 54... Ne6 {[%clk 0:00:02]} 55. d7 {[%clk 0:00:07.1]} 55...
Ke7 {[%clk 0:00:02.1]} 56. h6 {[%clk 0:00:06.8]} 56... Kd8 {[%clk 0:00:02.7]}
57. h7 {[%clk 0:00:06.3]} 57... Nd4+ {[%clk 0:00:04.6]} 58. Kd5 {[%clk
0:00:06.5]} 1-0

[Event "GrandPrix_29.05"]
[Site "Chess.com"]
[Date "2020.05.29"]
[Round "1"]
[White "LiamVrolijk"]
[Black "Koksik_13"]
[Result "1-0"]
[WhiteElo "2519"]
[BlackElo "2050"]
[TimeControl "600+2"]
[EndTime "9:25:14 PDT"]
[Termination "LiamVrolijk won on time"]

1. d4 {[%clk 0:09:57.4]} 1... e6 {[%clk 0:09:59.9]} 2. Nf3 {[%clk 0:09:54.4]}
2... Nf6 {[%clk 0:09:54.8]} 3. c4 {[%clk 0:09:54.2]} 3... d5 {[%clk 0:09:49.9]}
4. Nc3 {[%clk 0:09:52.7]} 4... a6 {[%clk 0:09:26.7]} 5. cxd5 {[%clk 0:09:52.1]}
5... exd5 {[%clk 0:09:23.4]} 6. Bg5 {[%clk 0:09:36.2]} 6... Be7 {[%clk
0:09:21.4]} 7. Qc2 {[%clk 0:09:20.7]} 7... c6 {[%clk 0:09:22]} 8. e3 {[%clk
0:09:21.4]} 8... O-O {[%clk 0:09:22.1]} 9. Bd3 {[%clk 0:09:16.7]} 9... Nbd7
{[%clk 0:09:23]} 10. h3 {[%clk 0:09:07.4]} 10... Re8 {[%clk 0:09:23.6]} 11. O-O
{[%clk 0:09:07]} 11... Nf8 {[%clk 0:09:24.8]} 12. Ne5 {[%clk 0:08:51.5]} 12...
N6d7 {[%clk 0:09:23.5]} 13. Bf4 {[%clk 0:08:19.1]} 13... Nxe5 {[%clk 0:09:22.4]}
14. Bxe5 {[%clk 0:08:21]} 14... Ng6 {[%clk 0:09:23.4]} 15. Bh2 {[%clk
0:08:14.1]} 15... Bd6 {[%clk 0:09:24.2]} 16. Bxd6 {[%clk 0:08:08.3]} 16... Qxd6
{[%clk 0:09:26.1]} 17. Rae1 {[%clk 0:08:09.6]} 17... Bd7 {[%clk 0:08:49.6]} 18.
f3 {[%clk 0:08:03.6]} 18... c5 {[%clk 0:08:42.5]} 19. dxc5 {[%clk 0:07:49.4]}
19... Qxc5 {[%clk 0:08:44.4]} 20. Qf2 {[%clk 0:07:50.1]} 20... b5 {[%clk
0:08:38.5]} 21. e4 {[%clk 0:06:53.9]} 21... Qxf2+ {[%clk 0:08:28.5]} 22. Kxf2
{[%clk 0:06:55.8]} 22... d4 {[%clk 0:07:13.9]} 23. Ne2 {[%clk 0:06:45.3]} 23...
Be6 {[%clk 0:07:09]} 24. b3 {[%clk 0:06:30.5]} 24... Ne5 {[%clk 0:06:26.7]} 25.
Rd1 {[%clk 0:06:29.4]} 25... Rad8 {[%clk 0:06:01.2]} 26. f4 {[%clk 0:06:11.3]}
26... Nc6 {[%clk 0:05:46.2]} 27. e5 {[%clk 0:05:28.5]} 27... Nb4 {[%clk
0:03:36.5]} 28. Rd2 {[%clk 0:05:28]} 28... f6 {[%clk 0:03:31.5]} 29. exf6 {[%clk
0:05:01.4]} 29... gxf6 {[%clk 0:03:33.4]} 30. Rfd1 {[%clk 0:03:34.8]} 30... Nxa2
{[%clk 0:02:51.4]} 31. Rxa2 {[%clk 0:02:45.3]} 31... Bxb3 {[%clk 0:02:51.8]} 32.
Rdd2 {[%clk 0:02:17.5]} 32... Bxa2 {[%clk 0:02:50.8]} 33. Rxa2 {[%clk
0:02:19.4]} 33... Re3 {[%clk 0:02:38.7]} 34. Bf5 {[%clk 0:02:10.4]} 34... b4
{[%clk 0:02:16.8]} 35. Nxd4 {[%clk 0:02:02.6]} 35... Ra3 {[%clk 0:02:17.5]} 36.
Be6+ {[%clk 0:01:47.1]} 36... Kh8 {[%clk 0:02:17.7]} 37. Rxa3 {[%clk 0:01:41.8]}
37... bxa3 {[%clk 0:02:19.6]} 38. Ke3 {[%clk 0:01:43.7]} 38... f5 {[%clk
0:01:38.1]} 39. g4 {[%clk 0:01:40.4]} 39... Kg7 {[%clk 0:01:19.8]} 40. Nc2
{[%clk 0:01:16.5]} 40... Kf6 {[%clk 0:00:48]} 41. gxf5 {[%clk 0:01:17.4]} 41...
Rd1 {[%clk 0:00:24]} 42. Nxa3 {[%clk 0:01:13.7]} 42... Rh1 {[%clk 0:00:25.4]}
43. Nc4 {[%clk 0:01:08.2]} 43... Rxh3+ {[%clk 0:00:26.7]} 44. Kd4 {[%clk
0:01:03.7]} 44... Rh1 {[%clk 0:00:25.3]} 45. Nd2 {[%clk 0:00:55.9]} 45... Rd1
{[%clk 0:00:19.8]} 46. Ke3 {[%clk 0:00:55.3]} 46... h5 {[%clk 0:00:08.1]} 47.
Ne4+ {[%clk 0:00:56.4]} 47... Ke7 {[%clk 0:00:07.8]} 48. Bb3 {[%clk 0:00:52.4]}
48... Rb1 {[%clk 0:00:08.1]} 49. f6+ {[%clk 0:00:52.5]} 49... Kf8 {[%clk
0:00:08.7]} 50. Be6 {[%clk 0:00:42.4]} 50... a5 {[%clk 0:00:05.1]} 51. Ng5
{[%clk 0:00:20.7]} 51... Re1+ {[%clk 0:00:05.3]} 52. Kd4 {[%clk 0:00:22.3]}
52... Rxe6 {[%clk 0:00:04.3]} 53. Nxe6+ {[%clk 0:00:24.2]} 53... Kf7 {[%clk
0:00:06.2]} 54. Ke5 {[%clk 0:00:25.7]} 54... a4 {[%clk 0:00:06.1]} 55. Ng5+
{[%clk 0:00:27]} 55... Kf8 {[%clk 0:00:03]} 56. Ke6 {[%clk 0:00:15.2]} 56... a3
{[%clk 0:00:04.1]} 57. Nh7+ {[%clk 0:00:12.3]} 57... Kg8 {[%clk 0:00:04.4]} 58.
f7+ {[%clk 0:00:14.2]} 58... Kxh7 {[%clk 0:00:04.7]} 59. f8=Q {[%clk 0:00:15.2]}
59... a2 {[%clk 0:00:06.6]} 60. Qa3 {[%clk 0:00:13.5]} 1-0